[Event "Late-Titled-Tuesday-Blitz-December-26-2023"]
[Site "Chess.com"]
[Date "2023.12.26"]
[Round "3"]
[White "rezamahdavi2008"]
[Black "Kleyton_Lima"]
[Result "1-0"]
[WhiteElo "2859"]
[BlackElo "2571"]
[TimeControl "180+1"]
[EndTime "14:26:20 PST"]
[Termination "rezamahdavi2008 won by resignation"]

1. Nf3 {[%clk 0:03:00.9]} 1... c5 {[%clk 0:02:59.3]} 2. c4 {[%clk 0:03:00.6]}
2... Nf6 {[%clk 0:02:59.4]} 3. Nc3 {[%clk 0:03:00.3]} 3... d5 {[%clk 0:02:57.7]}
4. cxd5 {[%clk 0:02:51.3]} 4... Nxd5 {[%clk 0:02:58.6]} 5. e3 {[%clk 0:02:52.1]}
5... Nxc3 {[%clk 0:02:50.8]} 6. dxc3 {[%clk 0:02:53]} 6... Qxd1+ {[%clk
0:02:49.1]} 7. Kxd1 {[%clk 0:02:53.9]} 7... Nc6 {[%clk 0:02:31.3]} 8. e4 {[%clk
0:02:54.2]} 8... Bd7 {[%clk 0:02:30.7]} 9. Kc2 {[%clk 0:02:48.5]} 9... e6 {[%clk
0:02:29.4]} 10. Bf4 {[%clk 0:02:48]} 10... O-O-O {[%clk 0:02:28]} 11. Rd1 {[%clk
0:02:47.3]} 11... Be7 {[%clk 0:02:26.7]} 12. Be2 {[%clk 0:02:44.7]} 12... f6
{[%clk 0:02:26.1]} 13. Rd2 {[%clk 0:02:41.6]} 13... g5 {[%clk 0:02:22.7]} 14.
Be3 {[%clk 0:02:40.4]} 14... Be8 {[%clk 0:02:15.5]} 15. Rhd1 {[%clk 0:02:38.9]}
15... Bg6 {[%clk 0:02:14.6]} 16. Rxd8+ {[%clk 0:02:36]} 16... Rxd8 {[%clk
0:02:15.5]} 17. Rxd8+ {[%clk 0:02:36.2]} 17... Kxd8 {[%clk 0:02:14.2]} 18. Nd2
{[%clk 0:02:37.1]} 18... h5 {[%clk 0:02:04.9]} 19. a3 {[%clk 0:02:30.3]} 19...
f5 {[%clk 0:02:04.1]} 20. f3 {[%clk 0:02:26.9]} 20... g4 {[%clk 0:02:01.2]} 21.
b4 {[%clk 0:02:22.4]} 21... cxb4 {[%clk 0:01:50.7]} 22. axb4 {[%clk 0:02:23.3]}
22... b6 {[%clk 0:01:48.4]} 23. b5 {[%clk 0:02:19.4]} 23... Nb8 {[%clk
0:01:40.3]} 24. exf5 {[%clk 0:02:12.2]} 24... Bxf5+ {[%clk 0:01:35.6]} 25. Bd3
{[%clk 0:02:12.7]} 25... Bxd3+ {[%clk 0:01:34.3]} 26. Kxd3 {[%clk 0:02:13.6]}
26... Nd7 {[%clk 0:01:34.7]} 27. Bf4 {[%clk 0:02:04.9]} 27... Nc5+ {[%clk
0:01:30.2]} 28. Ke3 {[%clk 0:02:05.2]} 28... Bf6 {[%clk 0:01:28.4]} 29. c4
{[%clk 0:01:58.6]} 29... a5 {[%clk 0:01:26.6]} 30. bxa6 {[%clk 0:01:55.6]} 30...
Nxa6 {[%clk 0:01:26.6]} 31. Ne4 {[%clk 0:01:56]} 31... Be7 {[%clk 0:01:24.5]}
32. fxg4 {[%clk 0:01:55.9]} 32... hxg4 {[%clk 0:01:24.6]} 33. Be5 {[%clk
0:01:49.5]} 33... Nb4 {[%clk 0:01:20.5]} 34. Bd4 {[%clk 0:01:48.7]} 34... Kc7
{[%clk 0:01:13.6]} 35. Kf4 {[%clk 0:01:49.1]} 35... Nc6 {[%clk 0:01:11]} 36. Bc3
{[%clk 0:01:43.4]} 36... Bd6+ {[%clk 0:01:08.2]} 37. Nxd6 {[%clk 0:01:43.4]}
37... Kxd6 {[%clk 0:01:08.4]} 38. Kxg4 {[%clk 0:01:44.3]} 38... Kc5 {[%clk
0:01:08.6]} 39. h4 {[%clk 0:01:45]} 39... Kxc4 {[%clk 0:01:08.9]} 40. Bf6 {[%clk
0:01:45.7]} 40... e5 {[%clk 0:00:59.2]} 41. h5 {[%clk 0:01:45.9]} 41... Nd4
{[%clk 0:00:59.8]} 42. h6 {[%clk 0:01:40.4]} 1-0

[Event "Late-Titled-Tuesday-Blitz-December-26-2023"]
[Site "Chess.com"]
[Date "2023.12.26"]
[Round "3"]
[White "TEREZANA"]
[Black "seasidesunset"]
[Result "1-0"]
[WhiteElo "2515"]
[BlackElo "2224"]
[TimeControl "180+1"]
[EndTime "14:26:21 PST"]
[Termination "TEREZANA won on time"]

1. d4 {[%clk 0:03:00.9]} 1... Nf6 {[%clk 0:02:59.2]} 2. Nf3 {[%clk 0:02:59.7]}
2... g6 {[%clk 0:02:58.6]} 3. Bg5 {[%clk 0:02:58.5]} 3... Bg7 {[%clk 0:02:58.6]}
4. Nbd2 {[%clk 0:02:56.2]} 4... c5 {[%clk 0:02:58.7]} 5. Bxf6 {[%clk 0:02:55.8]}
5... Bxf6 {[%clk 0:02:58.6]} 6. Ne4 {[%clk 0:02:56.7]} 6... Qa5+ {[%clk
0:02:03.4]} 7. c3 {[%clk 0:02:53.1]} 7... Qb6 {[%clk 0:02:00.9]} 8. Nxf6+ {[%clk
0:02:50.8]} 8... exf6 {[%clk 0:02:00.9]} 9. Qd2 {[%clk 0:02:48.4]} 9... d6
{[%clk 0:01:50.9]} 10. Qe3+ {[%clk 0:02:41.5]} 10... Kf8 {[%clk 0:01:43.5]} 11.
Qh6+ {[%clk 0:02:41.5]} 11... Kg8 {[%clk 0:01:37.2]} 12. O-O-O {[%clk
0:02:41.1]} 12... Bf5 {[%clk 0:01:34]} 13. e4 {[%clk 0:02:27.6]} 13... Bxe4
{[%clk 0:01:30.1]} 14. h4 {[%clk 0:02:20.2]} 14... Nc6 {[%clk 0:01:23.9]} 15.
Nd2 {[%clk 0:02:18.4]} 15... Bf5 {[%clk 0:00:51.3]} 16. Nc4 {[%clk 0:02:17.4]}
16... Qa6 {[%clk 0:00:46.9]} 17. g4 {[%clk 0:02:09.4]} 17... Bxg4 {[%clk
0:00:31.7]} 18. Ne3 {[%clk 0:02:07.3]} 18... Qxa2 {[%clk 0:00:19.5]} 19. Nxg4
{[%clk 0:02:07.7]} 19... Qe6 {[%clk 0:00:20]} 20. Bh3 {[%clk 0:01:56.9]} 20...
cxd4 {[%clk 0:00:20.2]} 21. Ne3 {[%clk 0:01:54.9]} 21... Qb3 {[%clk 0:00:14]}
22. Nf5 {[%clk 0:01:44.8]} 1-0

[Event "Late-Titled-Tuesday-Blitz-December-26-2023"]
[Site "Chess.com"]
[Date "2023.12.26"]
[Round "3"]
[White "INLOVEWITHF"]
[Black "MelihKaanCan"]
[Result "0-1"]
[WhiteElo "2532"]
[BlackElo "2383"]
[TimeControl "180+1"]
[EndTime "14:26:24 PST"]
[Termination "MelihKaanCan won by resignation"]

1. h4 {[%clk 0:03:00.9]} 1... d5 {[%clk 0:02:57.6]} 2. a4 {[%clk 0:02:58.8]}
2... e5 {[%clk 0:02:57.7]} 3. d4 {[%clk 0:02:49.8]} 3... exd4 {[%clk 0:02:54.9]}
4. Qxd4 {[%clk 0:02:43.5]} 4... Nc6 {[%clk 0:02:53.9]} 5. Qd3 {[%clk 0:02:42.5]}
5... Nf6 {[%clk 0:02:45.6]} 6. c3 {[%clk 0:02:39.9]} 6... Bc5 {[%clk 0:02:39]}
7. b4 {[%clk 0:02:36.5]} 7... Bd6 {[%clk 0:02:29.1]} 8. h5 {[%clk 0:02:14.4]}
8... Ne5 {[%clk 0:02:28.1]} 9. Qe3 {[%clk 0:02:12.7]} 9... O-O {[%clk
0:02:20.9]} 10. h6 {[%clk 0:02:10.5]} 10... g6 {[%clk 0:02:12.9]} 11. Nf3 {[%clk
0:01:59.1]} 11... Nc4 {[%clk 0:02:11.8]} 12. Qg5 {[%clk 0:01:58.3]} 12... Bf5
{[%clk 0:02:00]} 13. Nd4 {[%clk 0:01:53.9]} 13... Bxb1 {[%clk 0:01:47.3]} 14.
Rxb1 {[%clk 0:01:53.3]} 14... Ne4 {[%clk 0:01:46.3]} 15. Qxd5 {[%clk 0:01:37.7]}
15... Nxf2 {[%clk 0:01:39.4]} 16. Bg5 {[%clk 0:01:26.3]} 16... Bg3 {[%clk
0:01:18.1]} 17. e4 {[%clk 0:00:31.7]} 17... Nxe4+ {[%clk 0:00:59.3]} 0-1

[Event "Late-Titled-Tuesday-Blitz-December-26-2023"]
[Site "Chess.com"]
[Date "2023.12.26"]
[Round "3"]
[White "jefferyx"]
[Black "GMthekingindian"]
[Result "1-0"]
[WhiteElo "3014"]
[BlackElo "2310"]
[TimeControl "180+1"]
[EndTime "14:26:26 PST"]
[Termination "jefferyx won by resignation"]

1. e4 {[%clk 0:03:00.9]} 1... c5 {[%clk 0:03:00.2]} 2. Nf3 {[%clk 0:03:01.2]}
2... d6 {[%clk 0:03:00.6]} 3. Nc3 {[%clk 0:03:01.9]} 3... Nf6 {[%clk 0:03:00]}
4. d4 {[%clk 0:03:02.4]} 4... cxd4 {[%clk 0:03:00.9]} 5. Qxd4 {[%clk 0:03:02.8]}
5... a6 {[%clk 0:02:58.9]} 6. Nd5 {[%clk 0:03:02.4]} 6... Nc6 {[%clk 0:02:45.5]}
7. Nxf6+ {[%clk 0:03:02]} 7... gxf6 {[%clk 0:02:46.2]} 8. Qd3 {[%clk 0:02:59.9]}
8... b5 {[%clk 0:02:36.6]} 9. Be2 {[%clk 0:02:57.3]} 9... Bb7 {[%clk 0:02:35.5]}
10. a4 {[%clk 0:02:53.9]} 10... b4 {[%clk 0:02:31.5]} 11. O-O {[%clk 0:02:53.5]}
11... Rg8 {[%clk 0:02:24.5]} 12. Bd2 {[%clk 0:02:52.5]} 12... e6 {[%clk
0:01:53.3]} 13. c3 {[%clk 0:02:50.9]} 13... d5 {[%clk 0:01:28.6]} 14. exd5
{[%clk 0:02:49]} 14... Qxd5 {[%clk 0:01:28]} 15. Qxd5 {[%clk 0:02:43.4]} 15...
exd5 {[%clk 0:01:28.9]} 16. Bd3 {[%clk 0:02:43.5]} 16... Bd6 {[%clk 0:01:14.8]}
17. Rfe1+ {[%clk 0:02:42.1]} 17... Ne5 {[%clk 0:00:48.5]} 18. Nd4 {[%clk
0:02:39.3]} 18... O-O-O {[%clk 0:00:39.3]} 19. Bxh7 {[%clk 0:02:38.3]} 19... Rh8
{[%clk 0:00:29.1]} 20. Bf5+ {[%clk 0:02:38.1]} 20... Kb8 {[%clk 0:00:29.5]} 21.
b3 {[%clk 0:02:20]} 21... Nc6 {[%clk 0:00:14.3]} 22. Nxc6+ {[%clk 0:02:04.6]}
22... Bxc6 {[%clk 0:00:15.2]} 23. h3 {[%clk 0:02:05.1]} 23... Be5 {[%clk
0:00:14.5]} 24. Rac1 {[%clk 0:02:00.5]} 24... Bb7 {[%clk 0:00:08.7]} 25. cxb4
{[%clk 0:01:59.4]} 25... Rhg8 {[%clk 0:00:08.5]} 26. g4 {[%clk 0:01:48.6]} 26...
d4 {[%clk 0:00:08.6]} 27. f4 {[%clk 0:01:47.3]} 27... Bc7 {[%clk 0:00:07.7]} 28.
Re7 {[%clk 0:01:46]} 28... Rh8 {[%clk 0:00:07.9]} 29. Rcxc7 {[%clk 0:01:45.2]}
1-0

[Event "Late-Titled-Tuesday-Blitz-December-26-2023"]
[Site "Chess.com"]
[Date "2023.12.26"]
[Round "3"]
[White "baag"]
[Black "Manukyan_Artak"]
[Result "1-0"]
[WhiteElo "2834"]
[BlackElo "2609"]
[TimeControl "180+1"]
[EndTime "14:26:31 PST"]
[Termination "baag won by resignation"]

1. d4 {[%clk 0:03:00.9]} 1... d5 {[%clk 0:02:59.3]} 2. c4 {[%clk 0:03:01.3]}
2... dxc4 {[%clk 0:02:58.5]} 3. e3 {[%clk 0:03:01.5]} 3... e5 {[%clk 0:02:58.3]}
4. Bxc4 {[%clk 0:03:00.8]} 4... exd4 {[%clk 0:02:58.2]} 5. exd4 {[%clk
0:03:01.7]} 5... Nf6 {[%clk 0:02:56.8]} 6. Nf3 {[%clk 0:03:02.1]} 6... Be7
{[%clk 0:02:53.5]} 7. O-O {[%clk 0:03:02.2]} 7... O-O {[%clk 0:02:46.9]} 8. h3
{[%clk 0:03:02.4]} 8... c5 {[%clk 0:02:45.1]} 9. Nc3 {[%clk 0:02:50.8]} 9... a6
{[%clk 0:02:38]} 10. a4 {[%clk 0:02:45.4]} 10... Nc6 {[%clk 0:02:24.5]} 11. Be3
{[%clk 0:02:19.4]} 11... cxd4 {[%clk 0:02:18.2]} 12. Nxd4 {[%clk 0:02:20.3]}
12... Ne5 {[%clk 0:02:13.5]} 13. Bb3 {[%clk 0:02:11.2]} 13... Bb4 {[%clk
0:01:57.2]} 14. Qe2 {[%clk 0:01:59.1]} 14... Re8 {[%clk 0:01:54.3]} 15. Rfd1
{[%clk 0:01:57.9]} 15... Qe7 {[%clk 0:01:50.3]} 16. Nd5 {[%clk 0:01:52.3]} 16...
Nxd5 {[%clk 0:01:49.2]} 17. Bxd5 {[%clk 0:01:53.2]} 17... Ng6 {[%clk 0:01:39]}
18. Qc4 {[%clk 0:01:43.4]} 18... a5 {[%clk 0:01:23.1]} 19. Rac1 {[%clk
0:01:31.4]} 19... Ne5 {[%clk 0:01:11.2]} 20. Qc7 {[%clk 0:01:24.3]} 20... Bd6
{[%clk 0:01:02.8]} 21. Qxe7 {[%clk 0:01:19.5]} 21... Rxe7 {[%clk 0:01:03.7]} 22.
Nb5 {[%clk 0:01:18.6]} 22... Bb4 {[%clk 0:00:56.1]} 23. Nc7 {[%clk 0:01:05]}
23... Rxc7 {[%clk 0:00:42.1]} 24. Rxc7 {[%clk 0:01:05.9]} 24... Bd6 {[%clk
0:00:42]} 25. Bxb7 {[%clk 0:01:02.9]} 1-0

[Event "Late-Titled-Tuesday-Blitz-December-26-2023"]
[Site "Chess.com"]
[Date "2023.12.26"]
[Round "3"]
[White "Fh2411"]
[Black "marvinguevara"]
[Result "1-0"]
[WhiteElo "2514"]
[BlackElo "2236"]
[TimeControl "180+1"]
[EndTime "14:26:38 PST"]
[Termination "Fh2411 won by resignation"]

1. d4 {[%clk 0:03:00.9]} 1... Nf6 {[%clk 0:02:59.7]} 2. Nf3 {[%clk 0:03:01.3]}
2... e6 {[%clk 0:02:59.9]} 3. Bf4 {[%clk 0:03:01.7]} 3... d5 {[%clk 0:02:56.9]}
4. e3 {[%clk 0:03:01.8]} 4... c5 {[%clk 0:02:56.8]} 5. c3 {[%clk 0:03:01.3]}
5... Nc6 {[%clk 0:02:56.7]} 6. Nbd2 {[%clk 0:03:00.5]} 6... Bd6 {[%clk
0:02:53.5]} 7. Bg3 {[%clk 0:03:00.2]} 7... O-O {[%clk 0:02:51.9]} 8. Bd3 {[%clk
0:03:00]} 8... b6 {[%clk 0:02:42.3]} 9. e4 {[%clk 0:02:56.8]} 9... dxe4 {[%clk
0:02:37.3]} 10. Nxe4 {[%clk 0:02:57.7]} 10... Nxe4 {[%clk 0:02:36]} 11. Bxe4
{[%clk 0:02:57.1]} 11... Bb7 {[%clk 0:02:35.5]} 12. dxc5 {[%clk 0:02:57.4]}
12... Bxc5 {[%clk 0:02:30.8]} 13. Qa4 {[%clk 0:02:57.2]} 13... Qc8 {[%clk
0:02:20.8]} 14. Bxh7+ {[%clk 0:02:42.9]} 14... Kxh7 {[%clk 0:02:05.4]} 15. Qh4+
{[%clk 0:02:42.7]} 15... Kg8 {[%clk 0:01:46.1]} 16. Ng5 {[%clk 0:02:41.8]} 16...
Rd8 {[%clk 0:01:39.6]} 17. Qh7+ {[%clk 0:02:41.3]} 17... Kf8 {[%clk 0:01:38.6]}
18. Qh8+ {[%clk 0:02:42]} 18... Ke7 {[%clk 0:01:38.8]} 19. Qxg7 {[%clk
0:02:42.6]} 19... Rf8 {[%clk 0:01:32.9]} 20. O-O-O {[%clk 0:02:24.4]} 20... Ke8
{[%clk 0:01:21.8]} 21. Nh7 {[%clk 0:01:40.2]} 21... Nd8 {[%clk 0:00:53.3]} 22.
Bd6 {[%clk 0:01:12]} 22... Bxd6 {[%clk 0:00:47.2]} 23. Rxd6 {[%clk 0:01:12.2]}
1-0

[Event "Late-Titled-Tuesday-Blitz-December-26-2023"]
[Site "Chess.com"]
[Date "2023.12.26"]
[Round "3"]
[White "only_strong_moves"]
[Black "matagordo"]
[Result "1-0"]
[WhiteElo "2501"]
[BlackElo "2262"]
[TimeControl "180+1"]
[EndTime "14:26:39 PST"]
[Termination "only_strong_moves won by checkmate"]

1. d4 {[%clk 0:02:32.4]} 1... Nf6 {[%clk 0:02:54.8]} 2. Nc3 {[%clk 0:02:32]}
2... e6 {[%clk 0:02:42.4]} 3. e4 {[%clk 0:02:30.4]} 3... d5 {[%clk 0:02:41.9]}
4. f3 {[%clk 0:02:27.4]} 4... Bb4 {[%clk 0:02:28]} 5. e5 {[%clk 0:02:24.3]} 5...
Nfd7 {[%clk 0:02:27.9]} 6. a3 {[%clk 0:02:23.8]} 6... Ba5 {[%clk 0:02:19.8]} 7.
b4 {[%clk 0:02:16.7]} 7... Bb6 {[%clk 0:02:20]} 8. Be3 {[%clk 0:02:12]} 8... f6
{[%clk 0:02:12.5]} 9. f4 {[%clk 0:02:05.6]} 9... O-O {[%clk 0:02:09.8]} 10. Bd3
{[%clk 0:02:05.3]} 10... fxe5 {[%clk 0:02:01]} 11. fxe5 {[%clk 0:02:05.4]} 11...
Qh4+ {[%clk 0:02:01.6]} 12. g3 {[%clk 0:02:04.9]} 12... Qe7 {[%clk 0:01:56.5]}
13. Qh5 {[%clk 0:02:00.8]} 13... g6 {[%clk 0:01:47.6]} 14. Qh6 {[%clk
0:01:59.4]} 14... Qg7 {[%clk 0:01:20.6]} 15. Qh3 {[%clk 0:01:58.6]} 15... Rf7
{[%clk 0:01:12.1]} 16. Nge2 {[%clk 0:01:49.1]} 16... a5 {[%clk 0:01:08.8]} 17.
Kd2 {[%clk 0:01:37.9]} 17... axb4 {[%clk 0:00:59.9]} 18. axb4 {[%clk 0:01:38.8]}
18... Rxa1 {[%clk 0:01:00.2]} 19. Rxa1 {[%clk 0:01:39.7]} 19... Nc6 {[%clk
0:00:56.7]} 20. b5 {[%clk 0:01:37.9]} 20... Na7 {[%clk 0:00:21.6]} 21. Bh6
{[%clk 0:01:31.8]} 21... Qh8 {[%clk 0:00:20.9]} 22. Rxa7 {[%clk 0:01:27.2]}
22... Bxa7 {[%clk 0:00:19.9]} 23. Qxe6 {[%clk 0:01:27.9]} 23... Nf8 {[%clk
0:00:18.1]} 24. Qxc8 {[%clk 0:01:27.9]} 24... Bb6 {[%clk 0:00:12.3]} 25. Nxd5
{[%clk 0:01:27.9]} 25... g5 {[%clk 0:00:10.8]} 26. Ne7+ {[%clk 0:01:27.8]} 26...
Rxe7 {[%clk 0:00:10.4]} 27. Qxf8# {[%clk 0:01:28.7]} 1-0

[Event "Late-Titled-Tuesday-Blitz-December-26-2023"]
[Site "Chess.com"]
[Date "2023.12.26"]
[Round "3"]
[White "Marcin"]
[Black "Mikhail_Golubev"]
[Result "1-0"]
[WhiteElo "2466"]
[BlackElo "2620"]
[TimeControl "180+1"]
[EndTime "14:26:41 PST"]
[Termination "Marcin won on time"]

1. d4 {[%clk 0:02:56.3]} 1... Nf6 {[%clk 0:02:49]} 2. c4 {[%clk 0:02:56.2]} 2...
g6 {[%clk 0:02:48.8]} 3. Nc3 {[%clk 0:02:56.5]} 3... Bg7 {[%clk 0:02:49.3]} 4.
e4 {[%clk 0:02:56.6]} 4... d6 {[%clk 0:02:49.6]} 5. f4 {[%clk 0:02:55.2]} 5...
O-O {[%clk 0:02:48.9]} 6. Nf3 {[%clk 0:02:55.6]} 6... c5 {[%clk 0:02:49.1]} 7.
d5 {[%clk 0:02:55.8]} 7... e6 {[%clk 0:02:48.4]} 8. Be2 {[%clk 0:02:55.7]} 8...
exd5 {[%clk 0:02:48.4]} 9. cxd5 {[%clk 0:02:56.6]} 9... b5 {[%clk 0:02:47.4]}
10. e5 {[%clk 0:02:46.8]} 10... dxe5 {[%clk 0:02:46.6]} 11. fxe5 {[%clk
0:02:47.7]} 11... Ng4 {[%clk 0:02:46.6]} 12. Bf4 {[%clk 0:02:37.5]} 12... b4
{[%clk 0:01:50.3]} 13. Ne4 {[%clk 0:02:33.6]} 13... Bb7 {[%clk 0:01:50.2]} 14.
Nd6 {[%clk 0:02:25.6]} 14... Nxe5 {[%clk 0:00:47]} 15. Nxb7 {[%clk 0:02:23.7]}
15... Nxf3+ {[%clk 0:00:46]} 16. Bxf3 {[%clk 0:02:19.4]} 16... Qe7+ {[%clk
0:00:43.1]} 17. Qe2 {[%clk 0:02:09.9]} 17... Qxb7 {[%clk 0:00:43.5]} 18. O-O
{[%clk 0:02:07.5]} 18... Qd7 {[%clk 0:00:35.4]} 19. d6 {[%clk 0:01:54.7]} 19...
Nc6 {[%clk 0:00:34.1]} 20. Qb5 {[%clk 0:01:55.1]} 20... Rfc8 {[%clk 0:00:28.7]}
21. Rae1 {[%clk 0:01:50.7]} 21... Rab8 {[%clk 0:00:22.4]} 22. Bxc6 {[%clk
0:01:43.2]} 22... Qxc6 {[%clk 0:00:19.8]} 23. Qxc6 {[%clk 0:01:40.9]} 23... Rxc6
{[%clk 0:00:18.6]} 24. d7 {[%clk 0:01:41.6]} 24... Rf8 {[%clk 0:00:16.2]} 25.
Re8 {[%clk 0:01:39.7]} 25... Bd4+ {[%clk 0:00:13.3]} 26. Kh1 {[%clk 0:01:38.9]}
26... Bf6 {[%clk 0:00:08]} 27. Bh6 {[%clk 0:01:33.2]} 1-0

[Event "Late-Titled-Tuesday-Blitz-December-26-2023"]
[Site "Chess.com"]
[Date "2023.12.26"]
[Round "3"]
[White "Maitreia"]
[Black "Shankland"]
[Result "1-0"]
[WhiteElo "2728"]
[BlackElo "2929"]
[TimeControl "180+1"]
[EndTime "14:26:46 PST"]
[Termination "Maitreia won by resignation"]

1. c4 {[%clk 0:03:00.9]} 1... Nf6 {[%clk 0:02:56.7]} 2. Nc3 {[%clk 0:03:00.8]}
2... e6 {[%clk 0:02:57.1]} 3. e4 {[%clk 0:03:01]} 3... c5 {[%clk 0:02:57.3]} 4.
e5 {[%clk 0:02:59.2]} 4... Ng8 {[%clk 0:02:57.4]} 5. d4 {[%clk 0:02:59.7]} 5...
cxd4 {[%clk 0:02:56.4]} 6. Qxd4 {[%clk 0:03:00.6]} 6... Nc6 {[%clk 0:02:56]} 7.
Qe4 {[%clk 0:03:01.2]} 7... d6 {[%clk 0:02:54.6]} 8. Nf3 {[%clk 0:03:01.2]} 8...
dxe5 {[%clk 0:02:41.6]} 9. Nxe5 {[%clk 0:03:02.1]} 9... Nxe5 {[%clk 0:02:41.3]}
10. Qxe5 {[%clk 0:03:02.7]} 10... a6 {[%clk 0:02:40.9]} 11. Bf4 {[%clk
0:02:51.6]} 11... Ne7 {[%clk 0:02:35.2]} 12. Rd1 {[%clk 0:02:43.7]} 12... Bd7
{[%clk 0:02:35.3]} 13. Bd3 {[%clk 0:02:26.9]} 13... Ng6 {[%clk 0:02:28.5]} 14.
Bxg6 {[%clk 0:02:26.5]} 14... hxg6 {[%clk 0:02:29.2]} 15. Nd5 {[%clk 0:02:10.5]}
15... f6 {[%clk 0:02:11.7]} 16. Nc7+ {[%clk 0:01:53.8]} 16... Kf7 {[%clk
0:02:11]} 17. Qd4 {[%clk 0:01:51.2]} 17... Bb4+ {[%clk 0:02:10.2]} 18. Ke2
{[%clk 0:01:38.1]} 18... Ba4 {[%clk 0:01:44.2]} 19. Nxa8 {[%clk 0:01:30.2]}
19... Bxd1+ {[%clk 0:01:44.1]} 20. Rxd1 {[%clk 0:01:30.7]} 20... Qxa8 {[%clk
0:01:44.6]} 21. c5 {[%clk 0:01:18.4]} 21... e5 {[%clk 0:01:27]} 22. Qc4+ {[%clk
0:00:58.2]} 22... Ke7 {[%clk 0:01:21.4]} 23. Qxb4 {[%clk 0:00:35.6]} 23... exf4
{[%clk 0:01:20.7]} 24. c6+ {[%clk 0:00:35.5]} 24... Ke6 {[%clk 0:01:19.1]} 25.
Qe4+ {[%clk 0:00:27.3]} 25... Kf7 {[%clk 0:01:18.5]} 26. Rd7+ {[%clk 0:00:24.5]}
26... Kg8 {[%clk 0:01:18.8]} 27. Qxg6 {[%clk 0:00:22.5]} 1-0

[Event "Late-Titled-Tuesday-Blitz-December-26-2023"]
[Site "Chess.com"]
[Date "2023.12.26"]
[Round "3"]
[White "IlanSchnaider"]
[Black "h4parah5"]
[Result "0-1"]
[WhiteElo "2690"]
[BlackElo "2922"]
[TimeControl "180+1"]
[EndTime "14:26:47 PST"]
[Termination "h4parah5 won by resignation"]

1. e4 {[%clk 0:03:00.9]} 1... c5 {[%clk 0:02:59.3]} 2. Nf3 {[%clk 0:03:00.9]}
2... Nc6 {[%clk 0:02:59.5]} 3. Bb5 {[%clk 0:03:00.5]} 3... e6 {[%clk 0:02:58.5]}
4. O-O {[%clk 0:03:00]} 4... Nge7 {[%clk 0:02:58.6]} 5. d4 {[%clk 0:03:00.1]}
5... cxd4 {[%clk 0:02:57.5]} 6. Nxd4 {[%clk 0:03:00.7]} 6... a6 {[%clk
0:02:57.9]} 7. Be2 {[%clk 0:03:00.3]} 7... d5 {[%clk 0:02:56.7]} 8. exd5 {[%clk
0:02:59.7]} 8... Qxd5 {[%clk 0:02:56.2]} 9. Nxc6 {[%clk 0:02:51.2]} 9... Qxc6
{[%clk 0:02:57.1]} 10. Bf3 {[%clk 0:02:51]} 10... Qc7 {[%clk 0:02:56.9]} 11. Nc3
{[%clk 0:02:41]} 11... Bd7 {[%clk 0:02:56.3]} 12. Bg5 {[%clk 0:02:38.4]} 12...
h6 {[%clk 0:02:52.8]} 13. Bh4 {[%clk 0:02:17.6]} 13... Nf5 {[%clk 0:02:52.4]}
14. Bg3 {[%clk 0:02:18]} 14... Nxg3 {[%clk 0:02:52.2]} 15. hxg3 {[%clk
0:02:18.9]} 15... O-O-O {[%clk 0:02:46.3]} 16. Qe2 {[%clk 0:02:17]} 16... h5
{[%clk 0:02:41.8]} 17. Bxh5 {[%clk 0:01:58.2]} 17... g6 {[%clk 0:02:40.5]} 18.
Bf3 {[%clk 0:01:57.6]} 18... Bg7 {[%clk 0:02:39.3]} 19. Ne4 {[%clk 0:01:47.2]}
19... Bb5 {[%clk 0:02:37.8]} 20. c4 {[%clk 0:01:33.7]} 20... Bxc4 {[%clk
0:02:37.3]} 21. Qe3 {[%clk 0:01:34.1]} 21... Bxf1 {[%clk 0:02:35.3]} 22. Rxf1
{[%clk 0:01:09.8]} 22... Kb8 {[%clk 0:02:30.1]} 23. Rc1 {[%clk 0:01:09.6]} 23...
Rd3 {[%clk 0:01:56.6]} 24. Qg5 {[%clk 0:00:28.9]} 24... Qe5 {[%clk 0:01:52.4]}
25. Qe7 {[%clk 0:00:24.4]} 25... Qxb2 {[%clk 0:01:51.5]} 26. Qc7+ {[%clk
0:00:17.6]} 26... Ka8 {[%clk 0:01:48.6]} 27. Ng5 {[%clk 0:00:12.4]} 27... Rd7
{[%clk 0:01:34.1]} 28. Qc4 {[%clk 0:00:11]} 28... Qb5 {[%clk 0:01:30.8]} 29. Qc2
{[%clk 0:00:07.6]} 29... Qxg5 {[%clk 0:01:29.8]} 30. Qa4 {[%clk 0:00:06]} 30...
Qb5 {[%clk 0:01:29.3]} 0-1

[Event "Late-Titled-Tuesday-Blitz-December-26-2023"]
[Site "Chess.com"]
[Date "2023.12.26"]
[Round "3"]
[White "Msb2"]
[Black "lucasmito"]
[Result "1-0"]
[WhiteElo "3006"]
[BlackElo "2734"]
[TimeControl "180+1"]
[EndTime "14:26:50 PST"]
[Termination "Msb2 won on time"]

1. d4 {[%clk 0:03:00.9]} 1... Nf6 {[%clk 0:02:53.7]} 2. c4 {[%clk 0:02:59.9]}
2... e6 {[%clk 0:02:54]} 3. Nc3 {[%clk 0:03:00.6]} 3... d5 {[%clk 0:02:53.6]} 4.
cxd5 {[%clk 0:03:01.5]} 4... exd5 {[%clk 0:02:53.8]} 5. Bg5 {[%clk 0:03:02.2]}
5... c6 {[%clk 0:02:52.6]} 6. e3 {[%clk 0:03:02.8]} 6... Bf5 {[%clk 0:02:48.4]}
7. Nge2 {[%clk 0:03:02.7]} 7... Nbd7 {[%clk 0:02:46.7]} 8. Ng3 {[%clk
0:03:02.7]} 8... Bg6 {[%clk 0:02:47.2]} 9. h4 {[%clk 0:03:03]} 9... h6 {[%clk
0:02:42.7]} 10. Bf4 {[%clk 0:03:02.7]} 10... Qb6 {[%clk 0:02:36.8]} 11. Qd2
{[%clk 0:02:49.5]} 11... Bb4 {[%clk 0:02:32]} 12. Bd3 {[%clk 0:02:47.5]} 12...
Bxd3 {[%clk 0:01:57.5]} 13. Qxd3 {[%clk 0:02:48.4]} 13... O-O {[%clk 0:01:55.9]}
14. O-O {[%clk 0:02:46.9]} 14... c5 {[%clk 0:01:53.5]} 15. a3 {[%clk 0:02:37.6]}
15... c4 {[%clk 0:01:49.1]} 16. Qf5 {[%clk 0:02:33.7]} 16... Bxc3 {[%clk
0:01:48.7]} 17. bxc3 {[%clk 0:02:34.6]} 17... Qe6 {[%clk 0:01:43]} 18. Qc2
{[%clk 0:02:33.5]} 18... Ne4 {[%clk 0:01:22.4]} 19. Rab1 {[%clk 0:02:23.9]}
19... b6 {[%clk 0:01:19.1]} 20. a4 {[%clk 0:02:22.2]} 20... Ndf6 {[%clk
0:01:14.6]} 21. Ne2 {[%clk 0:02:20.9]} 21... Rfc8 {[%clk 0:00:53.4]} 22. f3
{[%clk 0:02:20.8]} 22... Nd6 {[%clk 0:00:53.3]} 23. Ng3 {[%clk 0:02:21.5]} 23...
Nb7 {[%clk 0:00:51.5]} 24. e4 {[%clk 0:02:19.1]} 24... Na5 {[%clk 0:00:47.6]}
25. Rbe1 {[%clk 0:02:19]} 25... Nb3 {[%clk 0:00:41.5]} 26. Nf5 {[%clk
0:02:17.3]} 26... Re8 {[%clk 0:00:36.6]} 27. Be5 {[%clk 0:01:54.4]} 27... dxe4
{[%clk 0:00:08.7]} 28. fxe4 {[%clk 0:01:55.3]} 28... Ng4 {[%clk 0:00:05.8]} 29.
Nxg7 {[%clk 0:01:53.6]} 29... Qg6 {[%clk 0:00:04]} 30. Nxe8 {[%clk 0:01:53.9]}
30... Rxe8 {[%clk 0:00:04.6]} 31. Qe2 {[%clk 0:01:41.7]} 31... Nc5 {[%clk
0:00:03.3]} 32. Qxc4 {[%clk 0:01:39.1]} 32... Nxe4 {[%clk 0:00:02]} 33. Rxe4
{[%clk 0:01:39.5]} 1-0